bitfinex-derivatives/quotes_SOLF0:USTF0_20260116
["timestamp","ask_amount","ask_price","bid_price","bid_amount"]
[1768583695990,6.3503,141.77,141.7,14.58225543]
[1768583696180,6.3503,141.77,141.71,8.22925543]
[1768583699084,12.72520463,141.77,141.71,8.22925543]
[1768583700985,6.35924914,141.75,141.69,8.22925543]
[1768583701482,8.58391796,141.76,141.7,8.22925543]
[1768583702890,8.58391796,141.76,141.7,14.58225543]
[1768583703284,12.69471188,141.75,141.69,8.22925543]
[1768583703889,2.23351796,141.76,141.7,8.22925543]
[1768583704583,6.33638392,141.77,141.7,8.22925543]
[1768583704786,98.7513,141.81,141.7,8.22925543]
[1768583704787,8.56990188,141.79,141.72,8.22925543]
[1768583704986,6.33638392,141.79,141.72,8.22925543]
[1768583705185,12.68538392,141.79,141.73,6.3515]
[1768583705693,6.32893666,141.78,141.72,8.22925543]
[1768583706185,6.32893666,141.78,141.72,14.58125543]
[1768583706985,12.67833666,141.78,141.72,14.58125543]
[1768583707192,12.67833666,141.78,141.72,8.22925543]
[1768583709397,14.90871995,141.78,141.72,8.22925543]
[1768583713395,2.23038329,141.79,141.73,8.22925543]
[1768583713899,6.2723827,141.8,141.73,8.22925543]
[1768583714901,12.6208827,141.8,141.73,14.58085543]
[1768583715493,12.6208827,141.8,141.74,8.22925543]
[1768583715707,8.48935042,141.82,141.75,8.22925543]
[1768583716394,6.25236577,141.81,141.75,8.22925543]
[1768583717392,12.60046577,141.81,141.75,8.22925543]
[1768583717592,6.24600064,141.85,141.76,8.22925543]
[1768583718189,6.3468,141.84,141.77,8.22925543]
[1768583718496,6.23951286,141.84,141.77,8.22925543]
[1768583718999,12.58030907,141.83,141.77,8.22925543]
[1768583719188,12.58030907,141.83,141.76,6.3499]
[1768583719385,6.23310907,141.82,141.75,10.45963872]
[1768583719998,12.58070907,141.82,141.75,10.45963872]
[1768583720197,12.58070907,141.82,141.75,8.22925543]
[1768583720498,12.58070907,141.82,141.76,8.22925543]
[1768583720886,12.56763006,141.84,141.77,8.22925543]
[1768583721088,6.22053006,141.84,141.77,8.22925543]
[1768583721703,6.3472,141.83,141.77,8.22925543]
[1768583722890,8.45091335,141.84,141.78,8.04466327]
[1768583723100,6.3466,141.85,141.78,8.04466327]
[1768583724003,6.3466,141.85,141.79,8.04466327]
[1768583724497,12.52457689,141.85,141.79,8.04466327]
[1768583733105,14.75496018,141.85,141.79,8.04466327]
[1768583734296,12.52457689,141.85,141.79,8.04466327]
[1768583734500,14.75496018,141.85,141.79,8.04466327]
[1768583735703,12.52457689,141.85,141.79,8.04466327]
[1768583736099,6.3467,141.84,141.79,8.04466327]
[1768583736412,6.11054915,141.83,141.77,14.27845864]
[1768583737109,6.11054915,141.83,141.78,7.92865864]
[1768583738013,6.11054915,141.83,141.75,2.23038329]
[1768583738014,6.11054915,141.83,141.76,7.92865864]
[1768583738908,12.44838095,141.82,141.76,7.92865864]
[1768583741215,6.3476,141.82,141.76,7.92865864]
[1768583742714,6.3476,141.82,141.77,7.92865864]
[1768583745521,12.35012628,141.81,141.75,8.58078329]
[1768583745721,6.00202628,141.81,141.74,14.27985864]
[1768583745921,8.23240957,141.81,141.74,14.27985864]
[1768583746622,12.27995259,141.8,141.74,7.92865864]
[1768583748625,5.93145259,141.8,141.74,14.27975864]
[1768583750524,6.3481,141.81,141.75,7.92865864]
[1768583751412,11.87524452,141.8,141.75,7.92865864]
[1768583751617,11.87524452,141.8,141.73,10.00988024]
[1768583752924,11.87524452,141.8,141.73,16.36148024]
[1768583753921,11.87524452,141.8,141.74,7.77949695]
[1768583754122,5.52674452,141.8,141.74,14.13069695]
[1768583757417,11.87524452,141.8,141.74,7.77949695]
[1768583760824,5.52674452,141.8,141.74,14.13069695]
[1768583761027,5.52674452,141.8,141.75,7.77949695]
[1768583762324,6.3481,141.81,141.75,7.77949695]
[1768583764025,6.3485,141.8,141.75,7.77949695]
[1768583766746,10.97444792,141.78,141.72,7.77949695]
[1768583769636,13.20480714,141.78,141.72,7.77949695]
[1768583770340,4.40976285,141.77,141.7,7.77949695]
[1768583770540,10.75966285,141.77,141.7,7.77949695]
[1768583770734,4.40976285,141.77,141.7,7.77949695]
[1768583771338,4.40976285,141.77,141.71,7.77949695]
[1768583771740,6.58784689,141.76,141.69,7.77949695]
[1768583772246,10.65682931,141.75,141.69,7.77949695]
[1768583775340,12.88718853,141.75,141.69,7.77949695]
[1768583777045,12.88718853,141.75,141.66,16.36415617]
[1768583777046,4.05630167,141.73,141.66,16.36415617]
[1768583777247,6.3513,141.74,141.67,7.77949695]
[1768583778740,6.3513,141.74,141.67,14.13379695]
[1768583778951,6.3513,141.74,141.68,7.77949695]
[1768583786256,12.18492117,141.74,141.68,7.77949695]
[1768583789155,3.44483197,141.73,141.67,6.3543]
[1768583789452,3.44483197,141.72,141.66,6.93096576]
[1768583790854,3.44483197,141.72,141.66,13.28566576]
[1768583792752,9.79693197,141.72,141.66,13.28566576]
[1768583793951,3.44483197,141.72,141.67,6.93096576]
[1768583794457,2.23035922,141.73,141.67,6.93096576]
[1768583794953,5.43531661,141.76,141.68,6.93096576]
[1768583795356,3.20495739,141.75,141.68,6.93096576]
[1768583796454,9.55605739,141.75,141.68,13.28486576]
[1768583797652,11.78641661,141.75,141.68,13.28486576]
[1768583799849,6.3513,141.74,141.68,13.28486576]
[1768583802560,6.3513,141.74,141.68,6.93096576]
[1768583802762,9.29645894,141.74,141.68,6.93096576]
[1768583803262,11.49070368,141.76,141.68,6.93096576]
[1768583803465,5.14010368,141.76,141.68,6.93096576]
[1768583804163,6.3512,141.74,141.69,6.93096576]
[1768583805058,2.23035922,141.76,141.7,6.93096576]
[1768583805258,2.23035922,141.77,141.7,6.93096576]
[1768583805457,5.06779834,141.77,141.7,6.93096576]
[1768583805652,6.3499,141.77,141.71,6.93096576]
[1768583810770,2.76413694,141.78,141.72,6.93096576]
[1768583811770,9.11353694,141.78,141.72,13.28306576]
[1768583812968,6.3494,141.78,141.73,6.37797698]
[1768583813169,2.50992294,141.8,141.74,6.37797698]
[1768583813470,4.74028216,141.82,141.74,6.37797698]
[1768583813861,2.47677646,141.81,141.74,6.37797698]
[1768583814168,279.3323,141.86,141.76,6.37797698]
[1768583814169,4.70713568,141.83,141.76,6.37797698]
[1768583814965,11.05473568,141.83,141.76,6.37797698]
[1768583816965,8.82437646,141.83,141.76,6.37797698]
[1768583818870,2.47677646,141.83,141.77,6.37797698]
[1768583819779,2.47677646,141.83,141.77,12.72777698]
[1768583820377,2.47677646,141.83,141.78,6.37797698]
[1768583824584,2.16575306,141.85,141.79,6.37797698]
[1768583825283,8.51205306,141.85,141.79,6.37797698]
[1768583826081,10.68387196,141.87,141.8,6.37797698]
[1768583826285,4.33807196,141.87,141.8,6.37797698]
[1768583826783,2.10771274,141.87,141.8,6.37797698]
[1768583827183,2.10771274,141.87,141.81,6.37797698]
[1768583827383,2.07914964,141.91,141.84,6.37797698]
[1768583828281,10.65320886,141.91,141.84,12.72447698]
[1768583828693,8.42284964,141.91,141.84,12.72447698]
[1768583828895,10.65320886,141.91,141.84,12.72447698]
[1768583829090,2.02316485,141.9,141.84,12.72447698]
[1768583831298,2.02316485,141.9,141.84,6.37797698]
[1768583833502,98.6568,141.95,141.82,6.37797698]
[1768583833503,1.91480845,141.88,141.82,6.37797698]
[1768583834796,4.14125139,141.88,141.82,6.37797698]
[1768583837611,1.8115813,141.87,141.79,12.72657698]
[1768583838107,2.22644294,141.86,141.8,6.37797698]
[1768583839003,8.57224294,141.86,141.8,6.37797698]
[1768583842600,6.3463,141.85,141.8,6.37797698]
[1768583845799,6.3469,141.84,141.78,6.10811291]
[1768583846003,10.16646283,141.84,141.78,6.10811291]
[1768583846598,10.16646283,141.84,141.73,364.8624]
[1768583846599,3.79696911,141.82,141.75,6.10811291]
[1768583847306,6.3481,141.81,141.75,12.45881291]
[1768583847500,3.79696911,141.82,141.76,6.10811291]
[1768583848608,6.3481,141.81,141.76,6.10811291]
[1768583854710,3.79696911,141.82,141.76,6.10811291]
[1768583855510,10.14466911,141.82,141.76,6.10811291]
[1768583858412,1.30130019,141.84,141.77,5.59613246]
[1768583858610,1.30130019,141.84,141.78,5.59613246]
[1768583859919,7.64800019,141.84,141.78,5.59613246]
[1768583861416,6.3462,141.86,141.8,5.59613246]
[1768583862115,2.22644294,141.87,141.81,5.59613246]
[1768583863920,8.57204294,141.87,141.81,5.59613246]
[1768583866624,9.72546537,141.87,141.81,5.59613246]
[1768583866815,7.49932243,141.86,141.81,5.59613246]
[1768583869321,6.3463,141.85,141.79,11.94503246]
[1768583869512,1.10145613,141.85,141.79,5.59613246]
[1768583869718,1.10145613,141.84,141.77,11.94563246]
[1768583870117,1.10145613,141.84,141.78,5.59613246]
[1768583870517,2.22644294,141.85,141.79,5.59613246]
[1768583870723,9.65706197,141.86,141.79,5.59613246]
[1768583871824,9.65706197,141.86,141.79,11.94503246]
[1768583872623,7.43061903,141.86,141.79,11.94503246]
[1768583872828,9.65706197,141.86,141.79,11.94503246]
[1768583873624,9.65706197,141.86,141.8,5.66197178]
[1768583880240,7.43061903,141.86,141.8,5.66197178]
[1768583880736,2.22644294,141.87,141.81,5.66197178]
[1768583880931,0.90257854,141.9,141.82,2.22644294]
[1768583881232,0.90257854,141.9,141.83,5.66197178]
[1768583881623,0.90257854,141.9,141.85,12.00817178]
[1768583883237,9.44287708,141.92,141.86,5.66197178]
[1768583884034,6.3436,141.91,141.86,5.66197178]
[1768583884234,7.20255316,141.91,141.86,5.66197178]
[1768583891934,0.74991327,141.89,141.83,12.00867178]
[1768583892438,0.74991327,141.89,141.84,5.66197178]
[1768583893134,2.9630227,141.91,141.85,5.66197178]
[1768583893641,0.73696741,141.91,141.85,5.66197178]
[1768583893835,7.08056741,141.91,141.85,5.66197178]
[1768583895342,7.08056741,141.91,141.85,12.00817178]
[1768583896441,0.69895918,141.9,141.85,5.66197178]
[1768583897638,6.3436,141.91,141.85,5.66197178]
[1768583898841,6.3436,141.91,141.85,12.00827178]
[1768583900139,6.99406989,141.91,141.85,12.00827178]
[1768583900740,6.3436,141.91,141.86,5.66197178]
[1768583901546,6.99356989,141.93,141.87,5.59435993]
[1768583901846,0.62313072,141.95,141.87,5.59435993]
[1768583902048,0.62313072,141.95,141.87,7.82041522]
[1768583902242,0.62313072,141.95,141.88,5.59435993]
[1768583902646,6.95393247,141.94,141.88,5.59435993]
[1768583903048,6.94295695,141.93,141.87,6.3454]
[1768583903246,0.60025695,141.92,141.86,5.59435993]
[1768583903543,6.3427,141.93,141.88,5.59435993]
[1768583903736,0.60025695,141.94,141.88,5.59435993]
[1768583903934,0.60025695,141.96,141.88,5.59435993]
[1768583905350,6.94155695,141.96,141.88,5.59435993]
[1768583906252,6.3418,141.95,141.89,5.59435993]
[1768583908157,6.3418,141.95,141.9,5.59435993]
[1768583913753,6.81842117,141.95,141.9,5.59435993]
[1768583916248,0.47662117,141.95,141.9,5.59435993]
[1768583923360,6.3408,141.98,141.91,5.14036715]
[1768583923859,6.3408,141.98,141.92,5.14036715]
[1768583924061,6.72340765,141.99,141.92,5.14036715]
[1768583924361,0.38340765,141.99,141.94,5.14036715]
[1768583924959,8.56565529,142.0,141.94,5.14036715]
[1768583925146,6.3396,142.0,141.94,5.14036715]
[1768583926146,0.3746348,142.01,141.94,11.48256715]
[1768583926351,2.58343975,142.07,141.98,5.14036715]
[1768583926553,0.35738446,142.09,142.0,5.14036715]
[1768583926760,2.58343975,142.09,142.0,5.14036715]
[1768583926968,8.91933975,142.09,142.0,5.14036715]
[1768583927146,0.34886713,142.06,142.0,5.14036715]
[1768583927458,2.57492242,142.05,141.99,6.3397]
[1768583927859,2.57492242,142.05,141.98,5.14036715]
[1768583928254,2.22605529,142.04,141.98,5.14036715]
[1768583929152,2.57492242,142.05,141.98,5.14036715]
[1768583929550,8.91242242,142.05,141.98,5.14036715]
[1768583929755,0.33233929,142.04,141.98,5.14036715]
[1768583930258,2.22605529,142.03,141.96,5.14036715]
[1768583930560,2.5501806,142.03,141.97,5.14036715]
[1768583930756,98.5714,142.07,141.97,5.14036715]
[1768583930961,8.8873806,142.06,141.97,5.14036715]
[1768583931861,8.8873806,142.06,141.98,5.06232764]
[1768583933867,6.3374,142.05,141.98,5.06232764]
[1768583934166,0.32412531,142.06,141.98,5.06232764]
[1768583934366,2.22605529,142.05,141.98,5.06232764]
[1768583935067,8.56345529,142.05,141.98,5.06232764]
[1768583940677,0.23169863,142.04,141.98,5.06232764]
[1768583940873,2.22605529,142.03,141.98,5.06232764]
[1768583942078,2.22605529,142.05,141.99,5.06232764]
[1768583943177,8.7801359,142.07,142.0,6.3395]
[1768583943484,2.4436359,142.07,142.01,5.06232764]
[1768583945174,2.22605529,142.05,141.99,5.06232764]
[1768583945788,2.22605529,142.05,141.99,11.40222764]
[1768583946383,2.22605529,142.05,142.0,5.06232764]
[1768583947184,2.41646257,142.05,141.99,6.3399]
[1768583948083,2.22605529,142.03,141.98,5.06232764]
[1768583948287,0.17725144,142.04,141.98,5.06232764]
[1768583948482,2.22605529,142.03,141.98,5.06232764]
[1768583949081,8.73515504,142.03,141.96,5.06232764]
[1768583949283,2.22605529,142.01,141.96,5.06232764]
[1768583951078,2.22605529,142.01,141.92,2.22605529]
[1768583951079,0.15808853,142.0,141.94,5.06232764]
[1768583951280,2.38206745,142.0,141.94,5.06232764]
[1768583955785,8.72166745,142.0,141.92,5.06232764]
[1768583956997,8.72166745,142.0,141.93,5.06232764]
[1768583957494,0.12183028,141.98,141.91,5.06232764]
[1768583957792,2.3458092,141.98,141.91,5.06232764]
[1768583958793,2.3458092,141.98,141.92,5.06232764]
[1768583963089,8.6863092,141.98,141.92,5.06232764]
[1768583967491,6.46233028,141.98,141.92,5.06232764]
[1768583969699,0.12183028,141.98,141.92,5.06232764]
[1768583971899,6.3415,141.96,141.92,5.06232764]
[1768583979806,6.342,141.95,141.92,5.06232764]
[1768583983499,2.3458092,141.98,141.89,4.90628794]
[1768583983500,98.6354,141.98,141.89,4.90628794]
[1768583983704,7.8616079,141.97,141.89,4.90628794]
[1768583984005,2.22397892,141.97,141.89,4.90628794]
[1768583984898,6.342,141.95,141.89,4.90628794]
[1768583985506,6.3422,141.94,141.89,4.90628794]
[1768583991214,6.3429,141.93,141.89,4.90628794]
[1768583995822,2.22397892,141.95,141.89,4.90628794]
[1768583995823,6.3418,141.95,141.89,4.90628794]
[1768584000221,6.3424,141.94,141.86,11.24082761]
[1768584000420,2.22397892,141.93,141.87,4.89542761]
[1768584001110,8.56637892,141.94,141.88,4.89542761]
[1768584001314,6.3424,141.94,141.88,4.89542761]
[1768584002914,6.3424,141.94,141.88,11.24032761]
[1768584004524,6.3424,141.94,141.88,4.89542761]
[1768584005518,6.3424,141.94,141.89,4.89542761]
[1768584010822,2.22397892,141.96,141.89,4.89542761]
[1768584011028,268.52397892,141.96,141.9,4.89542761]
[1768584011627,8.56617892,141.94,141.88,4.89542761]
[1768584012924,2.22397892,141.94,141.86,4.89542761]
[1768584013319,268.52605086,141.93,141.86,4.89542761]
[1768584013830,6.3433,141.92,141.86,4.89542761]
[1768584015019,2.22605086,141.93,141.87,4.89542761]
[1768584015220,266.3,141.96,141.88,4.89542761]
[1768584015423,5.64677045,141.95,141.88,4.89542761]
[1768584015731,266.3,141.96,141.88,4.89542761]
[1768584015934,6.3418,141.95,141.89,4.89542761]
[1768584020742,6.3414,141.96,141.9,4.89542761]
[1768584021730,2.22605086,141.98,141.91,4.3872392]
[1768584021932,268.52605086,141.98,141.91,4.3872392]
[1768584023935,6.3409,141.97,141.92,4.3872392]
[1768584025332,6.3405,141.98,141.92,4.3872392]
[1768584025536,12.6767,142.03,141.93,4.3872392]
[1768584025537,2.22605086,142.0,141.93,4.3872392]
[1768584025732,5.64922784,141.99,141.93,4.3872392]
[1768584025939,268.52605086,142.0,141.93,4.3872392]
[1768584026133,5.64922784,141.99,141.93,4.3872392]
[1768584026342,268.52605086,142.0,141.93,4.3872392]
[1768584026535,5.64808935,141.99,141.93,4.3872392]
[1768584026733,268.52605086,142.0,141.93,4.3872392]
[1768584026928,5.64808819,141.99,141.93,4.3872392]
[1768584027138,274.86595086,142.0,141.93,4.3872392]
[1768584027338,5.64831442,141.99,141.93,4.3872392]
[1768584027535,274.86595086,142.0,141.93,4.3872392]
[1768584027735,5.64705241,141.99,141.93,4.3872392]
[1768584027938,274.86595086,142.0,141.93,4.3872392]
[1768584028136,5.64705507,141.99,141.93,4.3872392]
[1768584028336,6.34,141.99,141.93,4.3872392]
[1768584029733,6.3407,141.98,141.91,4.3672823]
[1768584029936,8.56675086,141.98,141.91,4.3672823]
[1768584030840,8.56675086,141.98,141.91,10.7107823]
[1768584032336,8.56675086,141.98,141.92,4.3672823]
[1768584034445,6.341,141.97,141.92,4.3672823]
[1768584035147,2.22605086,141.96,141.88,10.7117823]
[1768584035333,2.22605086,141.96,141.88,4.3672823]
[1768584035537,2.22605086,141.94,141.85,6.59333316]
[1768584035732,266.26,141.93,141.85,4.3672823]
[1768584036141,8.56975086,141.91,141.85,4.3672823]
[1768584042039,6.3441,141.9,141.85,4.3672823]
[1768584043148,6.3446,141.89,141.85,4.3672823]
[1768584043447,6.3446,141.89,141.83,4.3672823]
[1768584045450,2.22605086,141.89,141.81,4.3672823]
[1768584046446,8.57095086,141.89,141.81,4.3672823]
[1768584046651,2.22605086,141.89,141.81,4.3672823]
[1768584047646,6.3459,141.86,141.81,4.3672823]
[1768584048446,2.22605086,141.85,141.77,4.3672823]
[1768584048848,6.3468,141.84,141.77,4.3672823]
[1768584049955,6.3468,141.84,141.78,4.3672823]
[1768584052354,2.22605086,141.83,141.78,4.3672823]
[1768584053858,6.3477,141.82,141.78,4.3672823]
[1768584056666,6.347,141.84,141.78,4.3672823]
[1768584061570,6.3461,141.86,141.79,4.38307782]
[1768584061771,268.66605086,141.88,141.79,6.60912868]
[1768584061973,268.66605086,141.88,141.8,4.38307782]
[1768584062678,2.22605086,141.86,141.8,4.38307782]
[1768584063773,6.3464,141.85,141.78,10.73207782]
[1768584064569,6.3464,141.85,141.79,4.38307782]
[1768584066672,8.57285086,141.84,141.77,4.38307782]
[1768584066872,2.22605086,141.84,141.77,4.38307782]
[1768584067675,98.7111,141.87,141.74,4.38307782]
[1768584067676,2.22605086,141.82,141.74,4.38307782]
[1768584067873,2.22605086,141.8,141.74,4.38307782]
[1768584068077,6.349,141.79,141.72,10.73507782]
[1768584069376,2.22605086,141.78,141.72,4.38307782]
[1768584069983,2.22605086,141.76,141.69,4.38307782]
[1768584070580,8.57645086,141.76,141.69,4.38307782]
[1768584072379,8.57645086,141.76,141.69,10.73637782]
[1768584072585,98.7612,141.8,141.7,4.38307782]
[1768584072586,8.57575086,141.78,141.7,4.38307782]
[1768584073379,8.58070387,141.77,141.7,10.73597782]
[1768584074878,6.3499,141.77,141.7,10.73597782]
[1768584075077,2.23080387,141.77,141.7,10.73597782]
[1768584075279,2.23080387,141.77,141.71,4.38307782]
[1768584080586,6.3495,141.78,141.72,4.38307782]
[1768584080886,8.58030387,141.78,141.72,4.38307782]
[1768584081281,8.57970387,141.8,141.73,4.38307782]
[1768584082882,6.3489,141.8,141.74,4.10328261]
[1768584083087,8.57970387,141.8,141.74,4.10328261]
[1768584084190,2.23080387,141.81,141.75,4.10328261]
[1768584085892,8.57890387,141.81,141.75,4.10328261]
[1768584087387,6.3481,141.81,141.75,4.10328261]
[1768584088595,6.3473,141.83,141.76,4.10328261]
[1768584088788,2.23080387,141.84,141.76,4.10328261]
[1768584089189,6.3464,141.85,141.79,3.81385084]
[1768584089792,6.3468,141.84,141.77,2.23080387]
[1768584089994,2.23080387,141.84,141.77,6.04465471]
[1768584090194,2.23080387,141.84,141.77,3.81385084]
[1768584091798,2.23080387,141.84,141.75,3.81385084]
[1768584092401,6.3472,141.83,141.75,10.16445084]
[1768584092598,6.3472,141.83,141.76,3.81385084]
[1768584093901,6.3472,141.83,141.76,10.16415084]
[1768584097108,6.3476,141.82,141.76,3.81385084]
[1768584099303,6.3481,141.81,141.76,3.81385084]
[1768584099508,2.23080387,141.82,141.74,3.81385084]
[1768584100805,6.3485,141.8,141.74,10.16505084]
[1768584103815,6.3485,141.8,141.75,3.81385084]
[1768584107021,6.3481,141.81,141.75,3.81385084]
[1768584108414,6.3476,141.82,141.76,3.81385084]
[1768584109613,8.57800387,141.83,141.77,3.81385084]
[1768584113721,6.3477,141.82,141.77,3.81385084]
[1768584121219,2.23080387,141.83,141.74,10.31325438]
[1768584121420,2.23080387,141.81,141.74,10.31325438]
[1768584121923,2.23080387,141.81,141.75,3.96205438]
[1768584123928,6.3485,141.8,141.75,3.96205438]
[1768584124121,6.3485,141.8,141.74,6.3512]
[1768584124835,6.3485,141.8,141.74,10.31325438]
[1768584125236,6.349,141.79,141.74,3.96205438]
[1768584126639,6.3494,141.78,141.71,3.96205438]
[1768584127033,6.3494,141.78,141.71,10.31455438]
[1768584127233,6.3499,141.77,141.71,10.31455438]
[1768584127638,6.3499,141.77,141.72,3.96205438]
[1768584127838,8.58070387,141.77,141.72,3.96205438]
[1768584129237,2.23080387,141.77,141.7,10.31505438]
[1768584129435,2.23080387,141.77,141.71,3.96205438]
[1768584129637,2.23080387,141.79,141.72,3.96205438]
[1768584129833,2.23080387,141.81,141.73,2.23080387]
[1768584130036,2.23080387,141.82,141.74,3.96205438]
[1768584131043,6.3481,141.81,141.75,3.96205438]
[1768584132732,6.3487,141.8,141.75,3.96205438]
[1768584133044,6.3487,141.8,141.73,10.31325438]
[1768584133443,6.3489,141.79,141.73,10.31325438]
[1768584134348,2.23080387,141.81,141.73,10.31325438]
[1768584134543,2.23080387,141.81,141.74,3.96205438]
[1768584135346,2.22984109,141.8,141.74,3.96205438]
[1768584135651,8.57834109,141.8,141.74,10.31325438]
[1768584136450,6.3485,141.8,141.75,3.96205438]
[1768584138252,2.22984109,141.82,141.75,3.96205438]
[1768584138552,365.2915,141.84,141.75,3.96205438]
[1768584138750,2.22984109,141.82,141.75,3.96205438]
[1768584139752,6.3481,141.81,141.75,3.96205438]
[1768584147352,6.3481,141.81,141.75,10.31275438]
[1768584148155,2.22984109,141.82,141.75,10.31275438]
[1768584149259,6.3481,141.81,141.75,10.31275438]
[1768584152960,8.57794109,141.81,141.75,10.31275438]
[1768584154956,2.22984109,141.82,141.76,9.89740679]
[1768584155461,275.13734109,141.83,141.77,3.54720679]
[1768584156562,442.25505646,141.85,141.78,3.54720679]
[1768584157355,169.34835646,141.85,141.79,3.54720679]
[1768584158561,6.3458,141.87,141.79,3.54720679]
[1768584158764,6.3458,141.87,141.8,6.3483]
[1768584159062,6.3458,141.87,141.8,9.89550679]
[1768584160562,6.3458,141.87,141.81,3.54720679]
[1768584162156,6.3458,141.87,141.8,6.3483]
[1768584162157,2.22984109,141.9,141.82,3.54720679]
[1768584164264,6.3459,141.86,141.79,3.54720679]
[1768584164568,2.22984109,141.84,141.79,3.54720679]
[1768584164963,2.22984109,141.85,141.79,3.54720679]
[1768584167369,8.57614109,141.85,141.79,3.54720679]
[1768584169072,6.3467,141.84,141.79,3.54720679]
[1768584169271,6.3467,141.84,141.77,3.54720679]
[1768584169667,2.22984109,141.83,141.77,3.54720679]
[1768584170871,8.57704109,141.83,141.77,3.54720679]
[1768584171571,8.57704109,141.83,141.77,9.89700679]
[1768584180875,8.57704109,141.83,141.77,3.54720679]
[1768584181277,2.22984109,141.81,141.75,3.58513549]
[1768584181477,2.22984109,141.79,141.73,3.58513549]
[1768584182076,2.22984109,141.79,141.73,9.93673549]
[1768584182380,2.22984109,141.79,141.73,3.58513549]
[1768584183482,2.22984109,141.79,141.74,3.58513549]
[1768584187580,98.7281,141.84,141.72,3.58513549]
[1768584187785,2.22984109,141.81,141.72,3.58513549]
[1768584188084,8.57794109,141.81,141.75,3.58513549]
[1768584189588,8.57794109,141.81,141.73,2.22984109]
[1768584189589,2.22984109,141.81,141.76,3.58513549]
[1768584189887,2.22984109,141.83,141.76,3.58513549]
[1768584190988,6.3476,141.82,141.76,9.93543549]
[1768584191487,8.57704109,141.83,141.77,3.58513549]
[1768584195185,6.3478,141.82,141.77,3.58513549]
[1768584200495,8.57662122,141.82,141.75,3.58513549]
[1768584200699,6.3482,141.81,141.75,3.58513549]
[1768584202689,6.3482,141.81,141.76,3.36564635]
[1768584206401,2.22882122,141.82,141.76,3.36564635]
[1768584206603,98.7235,141.85,141.76,3.36564635]
[1768584206803,2.22882122,141.84,141.76,3.36564635]
[1768584207801,6.3477,141.82,141.76,3.36564635]
[1768584209505,2.22882122,141.84,141.77,3.50656685]
[1768584210807,6.3472,141.83,141.77,3.50656685]
[1768584221721,6.3472,141.83,141.77,9.85636685]
[1768584221919,12.6873,141.91,141.78,3.50656685]
[1768584222120,7.86495111,141.9,141.8,3.50656685]
[1768584222315,268.76882122,141.92,141.83,3.50656685]
[1768584222516,5.63043367,141.91,141.83,3.50656685]
[1768584222717,268.76882122,141.92,141.83,3.50656685]
[1768584223922,6.3437,141.91,141.84,6.3465]
[1768584224524,6.3437,141.91,141.84,9.85306685]
[1768584225221,6.3441,141.9,141.84,3.50656685]
[1768584225618,266.54,141.92,141.82,3.50656685]
[1768584225826,8.57332122,141.89,141.82,3.50656685]
[1768584226124,2.22882122,141.87,141.8,3.50656685]
[1768584226824,2.22882122,141.87,141.81,9.85456685]
[1768584228818,2.22882122,141.87,141.81,6.348]
[1768584229018,8.57422122,141.87,141.81,6.348]
[1768584232032,2.22882122,141.87,141.81,9.59545577]
[1768584232729,98.6796,141.91,141.81,9.59545577]
[1768584232933,2.22882122,141.89,141.82,9.59505577]
[1768584233829,8.57332122,141.89,141.82,9.59505577]
[1768584236229,2.22882122,141.89,141.82,9.59505577]
[1768584236436,2.22882122,141.87,141.82,3.24745577]
[1768584241646,2.22882122,141.85,141.8,3.24745577]
[1768584242740,8.57512122,141.85,141.8,3.24745577]
[1768584243355,2.22882122,141.83,141.78,3.24745577]
[1768584245544,8.57612122,141.83,141.78,3.24745577]
[1768584251151,8.57612122,141.83,141.76,6.3502]
[1768584251349,6.3478,141.82,141.76,3.24745577]
[1768584251656,2.22882122,141.81,141.76,3.24745577]
[1768584256159,8.57692122,141.81,141.76,3.24745577]
[1768584256354,2.22882122,141.79,141.71,3.24745577]
[1768584256562,98.7421,141.82,141.71,3.24745577]
[1768584256563,8.57872122,141.77,141.71,3.24745577]
[1768584257453,2.23123921,141.76,141.71,3.24745577]
[1768584258653,8.58163921,141.76,141.71,3.24745577]
[1768584264367,6.3508,141.75,141.71,3.24745577]
[1768584266664,6.3508,141.75,141.69,3.37254406]
[1768584267275,6.3513,141.74,141.69,3.37254406]
[1768584268268,6.3517,141.73,141.66,3.37254406]
[1768584269254,6.3517,141.73,141.67,3.27866762]
[1768584269561,2.23123921,141.74,141.67,3.27866762]
[1768584270764,8.58243921,141.74,141.68,3.27866762]
[1768584277472,6.3518,141.73,141.68,3.27866762]
[1768584277674,2.23123921,141.74,141.66,3.27866762]
[1768584278474,6.3521,141.72,141.66,3.27866762]
[1768584278767,2.23123921,141.7,141.64,3.27866762]
[1768584279073,2.23123921,141.7,141.62,3.27866762]
[1768584279774,6.3539,141.68,141.63,3.27866762]
[1768584280177,2.23123921,141.7,141.63,3.27866762]
[1768584281679,2.23123921,141.7,141.61,3.27866762]
[1768584281680,6.354,141.68,141.61,3.27866762]
[1768584282269,6.354,141.68,141.61,5.50990683]
[1768584283782,6.354,141.68,141.61,11.86690683]